[Event "Late-Titled-Tuesday-Blitz-August-29-2023"]
[Site "Chess.com"]
[Date "2023.08.29"]
[Round "10"]
[White "rachidhuilda"]
[Black "SHIVACalypso"]
[Result "1-0"]
[WhiteElo "2377"]
[BlackElo "2492"]
[TimeControl "180+1"]
[EndTime "15:53:58 PDT"]
[Termination "rachidhuilda won on time"]

1. d4 {[%clk 0:03:00.9]} 1... Nf6 {[%clk 0:02:58.5]} 2. Bg5 {[%clk 0:03:00.8]}
2... Ne4 {[%clk 0:02:58]} 3. Bf4 {[%clk 0:03:00.9]} 3... c5 {[%clk 0:02:57.4]}
4. f3 {[%clk 0:03:00.6]} 4... Nf6 {[%clk 0:02:54.6]} 5. dxc5 {[%clk 0:03:00.1]}
5... Qa5+ {[%clk 0:02:52.8]} 6. Nc3 {[%clk 0:03:00.2]} 6... Qxc5 {[%clk
0:02:50.9]} 7. e4 {[%clk 0:03:00.3]} 7... a6 {[%clk 0:02:47.9]} 8. Qd2 {[%clk
0:02:59.6]} 8... e5 {[%clk 0:02:45.5]} 9. Be3 {[%clk 0:02:56.7]} 9... Qa5 {[%clk
0:02:45.4]} 10. Bc4 {[%clk 0:02:47.4]} 10... Bb4 {[%clk 0:02:41.7]} 11. Nge2
{[%clk 0:02:47]} 11... b5 {[%clk 0:02:35.9]} 12. Bb3 {[%clk 0:02:37.3]} 12...
Nc6 {[%clk 0:02:29.6]} 13. a3 {[%clk 0:02:29.7]} 13... O-O {[%clk 0:02:28.1]}
14. O-O {[%clk 0:02:29.1]} 14... Be7 {[%clk 0:02:26.4]} 15. Rfd1 {[%clk
0:02:04.6]} 15... Qc7 {[%clk 0:02:17.7]} 16. Nd5 {[%clk 0:02:02.2]} 16... Nxd5
{[%clk 0:02:17]} 17. Bxd5 {[%clk 0:02:02.7]} 17... Bb7 {[%clk 0:02:15.6]} 18.
Rac1 {[%clk 0:02:02.1]} 18... Na5 {[%clk 0:02:10.7]} 19. Bxb7 {[%clk 0:02:00.1]}
19... Nxb7 {[%clk 0:02:08.8]} 20. Qxd7 {[%clk 0:01:59.8]} 20... Rac8 {[%clk
0:02:07.2]} 21. Qxc7 {[%clk 0:01:57.1]} 21... Rxc7 {[%clk 0:02:08.1]} 22. Nc3
{[%clk 0:01:40.1]} 22... Bc5 {[%clk 0:01:36.9]} 23. Kf2 {[%clk 0:01:35.6]} 23...
Rfc8 {[%clk 0:01:31.3]} 24. Rd2 {[%clk 0:01:23.2]} 24... f6 {[%clk 0:01:21.8]}
25. Nd5 {[%clk 0:01:22.3]} 25... Bxe3+ {[%clk 0:01:20.9]} 26. Kxe3 {[%clk
0:01:20.8]} 26... Rf7 {[%clk 0:01:17.7]} 27. Rcd1 {[%clk 0:01:04.1]} 27... Na5
{[%clk 0:01:09.2]} 28. b3 {[%clk 0:01:03.9]} 28... Nc6 {[%clk 0:01:08.4]} 29. c3
{[%clk 0:00:57.3]} 29... Na5 {[%clk 0:01:04.4]} 30. Rb1 {[%clk 0:00:48.2]} 30...
Kf8 {[%clk 0:01:00.7]} 31. a4 {[%clk 0:00:48.2]} 31... bxa4 {[%clk 0:00:57.8]}
32. bxa4 {[%clk 0:00:48]} 32... Nc4+ {[%clk 0:00:57.6]} 33. Kd3 {[%clk 0:00:48]}
33... Nxd2 {[%clk 0:00:58.5]} 34. Kxd2 {[%clk 0:00:48.4]} 34... Rd7 {[%clk
0:00:50.3]} 35. Rb6 {[%clk 0:00:47.4]} 35... a5 {[%clk 0:00:45.6]} 36. Rb5
{[%clk 0:00:44]} 36... Ra7 {[%clk 0:00:43.6]} 37. Kd3 {[%clk 0:00:42.3]} 37...
Kf7 {[%clk 0:00:43.4]} 38. c4 {[%clk 0:00:40.6]} 38... g6 {[%clk 0:00:41.5]} 39.
g4 {[%clk 0:00:39.4]} 39... f5 {[%clk 0:00:41.3]} 40. gxf5 {[%clk 0:00:39.3]}
40... gxf5 {[%clk 0:00:42.2]} 41. c5 {[%clk 0:00:39.1]} 41... fxe4+ {[%clk
0:00:41.4]} 42. fxe4 {[%clk 0:00:38.8]} 42... Ke6 {[%clk 0:00:31.4]} 43. Kc4
{[%clk 0:00:38.4]} 43... Rf7 {[%clk 0:00:27.4]} 44. Rb6+ {[%clk 0:00:36.8]}
44... Kd7 {[%clk 0:00:26.5]} 45. Rd6+ {[%clk 0:00:34.7]} 45... Ke8 {[%clk
0:00:23.6]} 46. c6 {[%clk 0:00:28.6]} 46... Rf1 {[%clk 0:00:20.9]} 47. Kb5
{[%clk 0:00:27.5]} 47... Rc1 {[%clk 0:00:18]} 48. c7 {[%clk 0:00:26.8]} 48...
R1xc7 {[%clk 0:00:15]} 49. Nxc7+ {[%clk 0:00:24.8]} 49... Rxc7 {[%clk
0:00:15.9]} 50. Re6+ {[%clk 0:00:25]} 50... Kd7 {[%clk 0:00:14.3]} 51. Rxe5
{[%clk 0:00:25.3]} 51... Kd6 {[%clk 0:00:13.2]} 52. Rh5 {[%clk 0:00:25.2]} 52...
Rb7+ {[%clk 0:00:07.1]} 53. Kxa5 {[%clk 0:00:24.7]} 53... Kc6 {[%clk 0:00:07.4]}
54. e5 {[%clk 0:00:20.1]} 54... Kc5 {[%clk 0:00:02.1]} 55. Ka6 {[%clk 0:00:12]}
55... Rb6+ {[%clk 0:00:02]} 56. Ka5 {[%clk 0:00:09.7]} 56... Rb7 {[%clk
0:00:02.2]} 57. e6+ {[%clk 0:00:09.8]} 57... Kd6 {[%clk 0:00:02.6]} 58. Rh6
{[%clk 0:00:09.9]} 1-0

[Event "Late-Titled-Tuesday-Blitz-August-29-2023"]
[Site "Chess.com"]
[Date "2023.08.29"]
[Round "10"]
[White "scandalgod"]
[Black "Leo_C"]
[Result "0-1"]
[WhiteElo "2491"]
[BlackElo "2579"]
[TimeControl "180+1"]
[EndTime "15:53:59 PDT"]
[Termination "Leo_C won by resignation"]

1. d4 {[%clk 0:02:55.9]} 1... Nf6 {[%clk 0:02:58.7]} 2. c4 {[%clk 0:02:56]} 2...
e6 {[%clk 0:02:59]} 3. g3 {[%clk 0:02:56]} 3... d5 {[%clk 0:02:59]} 4. Bg2
{[%clk 0:02:56.3]} 4... Bb4+ {[%clk 0:02:59.2]} 5. Bd2 {[%clk 0:02:54.5]} 5...
Be7 {[%clk 0:02:59.3]} 6. Nf3 {[%clk 0:02:53.8]} 6... c6 {[%clk 0:02:59.9]} 7.
Qc2 {[%clk 0:02:54.3]} 7... Nbd7 {[%clk 0:03:00.3]} 8. O-O {[%clk 0:02:54.4]}
8... Ne4 {[%clk 0:03:00.1]} 9. Bc1 {[%clk 0:02:47.9]} 9... b6 {[%clk 0:02:37.9]}
10. Nfd2 {[%clk 0:02:45.4]} 10... f5 {[%clk 0:02:25]} 11. f3 {[%clk 0:02:44.4]}
11... Nxd2 {[%clk 0:02:23.5]} 12. Nxd2 {[%clk 0:02:44.9]} 12... Bf6 {[%clk
0:02:22.4]} 13. e3 {[%clk 0:02:38.3]} 13... h5 {[%clk 0:02:19.4]} 14. b3 {[%clk
0:02:31.9]} 14... h4 {[%clk 0:02:18.4]} 15. Bb2 {[%clk 0:02:32.1]} 15... hxg3
{[%clk 0:02:16.9]} 16. hxg3 {[%clk 0:02:33]} 16... Qc7 {[%clk 0:01:58]} 17. Kf2
{[%clk 0:02:32.1]} 17... Ba6 {[%clk 0:01:52.3]} 18. cxd5 {[%clk 0:02:20.2]}
18... Bxf1 {[%clk 0:01:51.9]} 19. Rxf1 {[%clk 0:02:14.9]} 19... Nf8 {[%clk
0:01:47.9]} 20. dxc6 {[%clk 0:02:09.4]} 20... Rc8 {[%clk 0:01:35.5]} 21. Rc1
{[%clk 0:02:08.6]} 21... Ng6 {[%clk 0:01:28.4]} 22. f4 {[%clk 0:02:05.1]} 22...
Ne7 {[%clk 0:01:27]} 23. Nc4 {[%clk 0:01:58.1]} 23... Rh2 {[%clk 0:01:23.3]} 24.
Kg1 {[%clk 0:01:54.9]} 24... Rxg2+ {[%clk 0:01:15.6]} 25. Qxg2 {[%clk
0:01:51.6]} 25... Qxc6 {[%clk 0:01:16.1]} 26. Qh2 {[%clk 0:01:34.5]} 26... b5
{[%clk 0:00:59.9]} 27. Nd2 {[%clk 0:01:19.2]} 27... Qb7 {[%clk 0:00:42]} 28. Qg2
{[%clk 0:01:09.3]} 28... Rxc1+ {[%clk 0:00:40.4]} 29. Bxc1 {[%clk 0:01:09.2]}
29... Nd5 {[%clk 0:00:28]} 30. Nf1 {[%clk 0:01:02.9]} 30... Qc7 {[%clk
0:00:25.7]} 31. Qd2 {[%clk 0:01:01.7]} 31... Be7 {[%clk 0:00:21]} 32. a3 {[%clk
0:00:58.3]} 32... Nf6 {[%clk 0:00:20.4]} 33. Bb2 {[%clk 0:00:54.3]} 33... Ne4
{[%clk 0:00:20.4]} 34. Qd3 {[%clk 0:00:52.4]} 34... Qa5 {[%clk 0:00:18.4]} 35.
b4 {[%clk 0:00:47.7]} 35... Qb6 {[%clk 0:00:18.4]} 36. Bc3 {[%clk 0:00:36.1]}
36... Qc6 {[%clk 0:00:18]} 37. Be1 {[%clk 0:00:35.9]} 37... a6 {[%clk
0:00:13.7]} 38. Nd2 {[%clk 0:00:33.9]} 38... Qc1 {[%clk 0:00:13.3]} 39. Kf1
{[%clk 0:00:20.1]} 39... Nxg3+ {[%clk 0:00:12.3]} 40. Kf2 {[%clk 0:00:19.3]}
40... Ne4+ {[%clk 0:00:12.5]} 41. Ke2 {[%clk 0:00:18.2]} 41... Nc3+ {[%clk
0:00:09.1]} 42. Kf2 {[%clk 0:00:16.9]} 42... Bh4+ {[%clk 0:00:08.4]} 43. Kg2
{[%clk 0:00:15.3]} 43... Bxe1 {[%clk 0:00:08.4]} 44. Nf3 {[%clk 0:00:14.1]}
44... Ne4 {[%clk 0:00:05.5]} 45. d5 {[%clk 0:00:12.6]} 45... Bc3 {[%clk
0:00:03.8]} 46. dxe6 {[%clk 0:00:10.4]} 46... Qb2+ {[%clk 0:00:03.5]} 47. Kg1
{[%clk 0:00:05.7]} 47... Qf2+ {[%clk 0:00:02.7]} 48. Kh1 {[%clk 0:00:05.3]}
48... Qxf3+ {[%clk 0:00:03.1]} 49. Kg1 {[%clk 0:00:05.2]} 49... Qg3+ {[%clk
0:00:03.1]} 50. Kh1 {[%clk 0:00:04.1]} 50... Qe1+ {[%clk 0:00:03.4]} 51. Kg2
{[%clk 0:00:03.4]} 51... Qd2+ {[%clk 0:00:03.5]} 52. Qxd2 {[%clk 0:00:02.8]}
52... Bxd2 {[%clk 0:00:04.4]} 53. Kf3 {[%clk 0:00:03.3]} 53... Bc1 {[%clk
0:00:04.9]} 54. Ke2 {[%clk 0:00:04.2]} 54... Bxa3 {[%clk 0:00:05.2]} 0-1

[Event "Late-Titled-Tuesday-Blitz-August-29-2023"]
[Site "Chess.com"]
[Date "2023.08.29"]
[Round "10"]
[White "19912131712118"]
[Black "NigelDwarf"]
[Result "1-0"]
[WhiteElo "2444"]
[BlackElo "2539"]
[TimeControl "180+1"]
[EndTime "15:53:59 PDT"]
[Termination "19912131712118 won by resignation"]

1. e4 {[%clk 0:03:00.9]} 1... c5 {[%clk 0:02:59.5]} 2. Nf3 {[%clk 0:03:00.9]}
2... d6 {[%clk 0:02:59.3]} 3. d4 {[%clk 0:02:59.6]} 3... Nf6 {[%clk 0:02:58.6]}
4. Nc3 {[%clk 0:02:52.2]} 4... cxd4 {[%clk 0:02:45.8]} 5. Nxd4 {[%clk
0:02:51.9]} 5... a6 {[%clk 0:02:45.6]} 6. Bg5 {[%clk 0:02:51.1]} 6... Nbd7
{[%clk 0:02:45.4]} 7. f4 {[%clk 0:02:48.4]} 7... b5 {[%clk 0:02:20.5]} 8. a3
{[%clk 0:02:40.7]} 8... Bb7 {[%clk 0:02:19.5]} 9. Bd3 {[%clk 0:02:31.2]} 9...
Rc8 {[%clk 0:02:12.4]} 10. Bh4 {[%clk 0:02:22.5]} 10... g6 {[%clk 0:02:02.6]}
11. O-O {[%clk 0:02:18.5]} 11... Bg7 {[%clk 0:01:59.7]} 12. Nf3 {[%clk
0:02:16.4]} 12... Rxc3 {[%clk 0:01:55.5]} 13. bxc3 {[%clk 0:02:14.5]} 13... Nxe4
{[%clk 0:01:55.6]} 14. Bxe4 {[%clk 0:01:34.5]} 14... Bxe4 {[%clk 0:01:56.5]} 15.
Re1 {[%clk 0:01:34.9]} 15... d5 {[%clk 0:01:48.9]} 16. Ng5 {[%clk 0:01:33.5]}
16... Nc5 {[%clk 0:01:32]} 17. Bf2 {[%clk 0:01:09.8]} 17... Qd6 {[%clk
0:01:15.8]} 18. Bd4 {[%clk 0:01:02.2]} 18... f6 {[%clk 0:00:33.3]} 19. Nxe4
{[%clk 0:00:56.2]} 19... Nxe4 {[%clk 0:00:32.9]} 20. Qf3 {[%clk 0:00:49.7]}
20... O-O {[%clk 0:00:30.7]} 21. a4 {[%clk 0:00:42.5]} 21... e5 {[%clk
0:00:29.5]} 22. Be3 {[%clk 0:00:31.5]} 22... Nxc3 {[%clk 0:00:28.8]} 23. axb5
{[%clk 0:00:29.4]} 23... axb5 {[%clk 0:00:28.8]} 24. Ra7 {[%clk 0:00:26.2]}
24... d4 {[%clk 0:00:27.9]} 25. Bf2 {[%clk 0:00:26.1]} 25... Rf7 {[%clk
0:00:14.7]} 26. Rxf7 {[%clk 0:00:18.9]} 26... Kxf7 {[%clk 0:00:14.8]} 27. fxe5
{[%clk 0:00:19.3]} 27... Qd5 {[%clk 0:00:11.8]} 28. Qxd5+ {[%clk 0:00:16]} 28...
Nxd5 {[%clk 0:00:11.5]} 29. e6+ {[%clk 0:00:15.6]} 29... Ke7 {[%clk 0:00:10.5]}
30. Bxd4 {[%clk 0:00:16.5]} 30... Nf4 {[%clk 0:00:10.6]} 31. Bc5+ {[%clk
0:00:16.7]} 31... Ke8 {[%clk 0:00:10.9]} 32. e7 {[%clk 0:00:16.7]} 32... f5
{[%clk 0:00:08.3]} 33. Rd1 {[%clk 0:00:14.9]} 33... Ne6 {[%clk 0:00:07.5]} 34.
Bb4 {[%clk 0:00:13.1]} 34... Bf6 {[%clk 0:00:07.9]} 35. Re1 {[%clk 0:00:12.5]}
35... Nc7 {[%clk 0:00:05.9]} 36. c3 {[%clk 0:00:12.3]} 36... Nd5 {[%clk
0:00:06.1]} 37. Re6 {[%clk 0:00:09.5]} 37... Nxb4 {[%clk 0:00:03.3]} 38. Rxf6
{[%clk 0:00:08.2]} 38... Kxe7 {[%clk 0:00:03.7]} 39. Rb6 {[%clk 0:00:07.5]}
39... Nd5 {[%clk 0:00:03.9]} 40. Rxb5 {[%clk 0:00:07.4]} 40... Nxc3 {[%clk
0:00:04.3]} 41. Rb7+ {[%clk 0:00:08]} 41... Kf6 {[%clk 0:00:04.4]} 42. Rxh7
{[%clk 0:00:08.9]} 42... Ne4 {[%clk 0:00:05]} 43. Ra7 {[%clk 0:00:09.2]} 43...
g5 {[%clk 0:00:05.4]} 44. g3 {[%clk 0:00:09.2]} 44... g4 {[%clk 0:00:05.4]} 45.
Kg2 {[%clk 0:00:09]} 45... Ke5 {[%clk 0:00:05.4]} 46. Ra5+ {[%clk 0:00:09]}
46... Kf6 {[%clk 0:00:05.7]} 47. Kf1 {[%clk 0:00:08.7]} 47... Ng5 {[%clk
0:00:04.8]} 48. Ke2 {[%clk 0:00:07.9]} 48... Nf3 {[%clk 0:00:05.2]} 49. h4
{[%clk 0:00:07.8]} 49... Nd4+ {[%clk 0:00:03.2]} 50. Ke3 {[%clk 0:00:07.3]}
50... Nc2+ {[%clk 0:00:03]} 51. Kf4 {[%clk 0:00:07.2]} 51... Nd4 {[%clk
0:00:02.2]} 52. Ra6+ {[%clk 0:00:06.2]} 52... Ne6+ {[%clk 0:00:02.7]} 53. Ke3
{[%clk 0:00:05.8]} 53... Ke5 {[%clk 0:00:01.9]} 54. h5 {[%clk 0:00:06.2]} 54...
Kf6 {[%clk 0:00:02.1]} 55. h6 {[%clk 0:00:05.4]} 55... Ke7 {[%clk 0:00:02.7]}
56. Rxe6+ {[%clk 0:00:04.3]} 56... Kxe6 {[%clk 0:00:02.9]} 57. h7 {[%clk
0:00:05.2]} 57... Ke5 {[%clk 0:00:03.7]} 58. h8=Q+ {[%clk 0:00:05.8]} 1-0

[Event "Late-Titled-Tuesday-Blitz-August-29-2023"]
[Site "Chess.com"]
[Date "2023.08.29"]
[Round "10"]
[White "Sanan_Sjugirov"]
[Black "Fonsofan"]
[Result "1-0"]
[WhiteElo "2864"]
[BlackElo "2707"]
[TimeControl "180+1"]
[EndTime "15:54:02 PDT"]
[Termination "Sanan_Sjugirov won on time"]

1. d4 {[%clk 0:03:00.9]} 1... Nf6 {[%clk 0:02:54.9]} 2. Nf3 {[%clk 0:03:00.9]}
2... e6 {[%clk 0:02:55.3]} 3. g3 {[%clk 0:03:00.6]} 3... b6 {[%clk 0:02:54.1]}
4. Bg2 {[%clk 0:03:00.4]} 4... Bb7 {[%clk 0:02:54.4]} 5. c4 {[%clk 0:02:57.3]}
5... Bb4+ {[%clk 0:02:54.7]} 6. Bd2 {[%clk 0:02:56.8]} 6... Qe7 {[%clk
0:02:51.3]} 7. O-O {[%clk 0:02:55.4]} 7... Bxd2 {[%clk 0:02:48.3]} 8. Qxd2
{[%clk 0:02:55.3]} 8... d6 {[%clk 0:02:48]} 9. Qe3 {[%clk 0:02:47.4]} 9... c5
{[%clk 0:02:40.7]} 10. Nc3 {[%clk 0:02:43.5]} 10... Nc6 {[%clk 0:02:35.4]} 11.
Rfd1 {[%clk 0:02:39.1]} 11... O-O {[%clk 0:02:25.7]} 12. b3 {[%clk 0:02:17.4]}
12... Rfd8 {[%clk 0:02:23.5]} 13. Rd2 {[%clk 0:02:11.1]} 13... Rd7 {[%clk
0:02:03.4]} 14. Rad1 {[%clk 0:02:10.3]} 14... Rad8 {[%clk 0:02:03.9]} 15. h3
{[%clk 0:02:01.3]} 15... Kf8 {[%clk 0:01:50.7]} 16. g4 {[%clk 0:01:55.2]} 16...
Nxd4 {[%clk 0:01:41.9]} 17. Nxd4 {[%clk 0:01:54.9]} 17... cxd4 {[%clk 0:01:41]}
18. Rxd4 {[%clk 0:01:54.2]} 18... Bxg2 {[%clk 0:01:41]} 19. Kxg2 {[%clk
0:01:55.1]} 19... d5 {[%clk 0:01:41.4]} 20. g5 {[%clk 0:01:44.4]} 20... Nh5
{[%clk 0:01:21.7]} 21. cxd5 {[%clk 0:01:02.8]} 21... e5 {[%clk 0:01:21.6]} 22.
Re4 {[%clk 0:00:32.9]} 22... Nf4+ {[%clk 0:01:15.1]} 23. Kh2 {[%clk 0:00:31.9]}
23... Nxd5 {[%clk 0:00:52.6]} 24. Nxd5 {[%clk 0:00:30.3]} 24... Rxd5 {[%clk
0:00:53.5]} 25. Rxe5 {[%clk 0:00:25.7]} 25... Qxe5+ {[%clk 0:00:43]} 26. Qxe5
{[%clk 0:00:25.7]} 26... Rxd1 {[%clk 0:00:43.9]} 27. Qc7 {[%clk 0:00:17.9]}
27... R1d7 {[%clk 0:00:42.7]} 28. Qc4 {[%clk 0:00:13.8]} 28... Rd2 {[%clk
0:00:37.4]} 29. a4 {[%clk 0:00:12.4]} 29... Kg8 {[%clk 0:00:31.7]} 30. Kg2
{[%clk 0:00:11.5]} 30... R2d4 {[%clk 0:00:29.1]} 31. Qa6 {[%clk 0:00:08.8]}
31... R4d7 {[%clk 0:00:25.9]} 32. h4 {[%clk 0:00:08.5]} 32... h6 {[%clk
0:00:24.7]} 33. e3 {[%clk 0:00:06.9]} 33... hxg5 {[%clk 0:00:24.2]} 34. hxg5
{[%clk 0:00:07.8]} 34... Re7 {[%clk 0:00:23.6]} 35. Qc4 {[%clk 0:00:07]} 35...
Rde8 {[%clk 0:00:20.9]} 36. Qd4 {[%clk 0:00:05.1]} 36... Re5 {[%clk 0:00:19.8]}
37. Qg4 {[%clk 0:00:05]} 37... Rd8 {[%clk 0:00:18.1]} 38. Kf3 {[%clk 0:00:04.6]}
38... Rdd5 {[%clk 0:00:15.6]} 39. Qc8+ {[%clk 0:00:04.5]} 39... Kh7 {[%clk
0:00:15.5]} 40. Qc2+ {[%clk 0:00:04.7]} 40... Kg8 {[%clk 0:00:13.7]} 41. Qc7
{[%clk 0:00:04.7]} 41... a5 {[%clk 0:00:08.1]} 42. g6 {[%clk 0:00:02.6]} 42...
fxg6 {[%clk 0:00:07.6]} 43. Qxb6 {[%clk 0:00:02.9]} 43... Kh7 {[%clk 0:00:07.9]}
44. Qc6 {[%clk 0:00:03.2]} 44... Rc5 {[%clk 0:00:07.6]} 45. Qd6 {[%clk
0:00:03.7]} 45... Rf5+ {[%clk 0:00:07.3]} 46. Kg2 {[%clk 0:00:03.2]} 46... Rc2
{[%clk 0:00:06.7]} 47. Qh2+ {[%clk 0:00:02.8]} 47... Kg8 {[%clk 0:00:06.4]} 48.
Qb8+ {[%clk 0:00:02.9]} 48... Kh7 {[%clk 0:00:06.7]} 49. Qg3 {[%clk 0:00:03.5]}
49... Kg8 {[%clk 0:00:05.7]} 50. e4 {[%clk 0:00:03]} 50... Rf7 {[%clk
0:00:03.3]} 51. e5 {[%clk 0:00:02.2]} 51... Rf5 {[%clk 0:00:01.4]} 52. e6 {[%clk
0:00:02.3]} 52... Kf8 {[%clk 0:00:01.4]} 53. Qd6+ {[%clk 0:00:01.9]} 53... Kg8
{[%clk 0:00:01.2]} 54. Qd8+ {[%clk 0:00:01.9]} 54... Kh7 {[%clk 0:00:01]} 55.
Qh4+ {[%clk 0:00:02.6]} 1-0

[Event "Late-Titled-Tuesday-Blitz-August-29-2023"]
[Site "Chess.com"]
[Date "2023.08.29"]
[Round "10"]
[White "BlackBoarder"]
[Black "LeninGuerra"]
[Result "0-1"]
[WhiteElo "2728"]
[BlackElo "2575"]
[TimeControl "180+1"]
[EndTime "15:54:04 PDT"]
[Termination "LeninGuerra won on time"]

1. e4 {[%clk 0:03:00.9]} 1... c5 {[%clk 0:02:59.7]} 2. Nf3 {[%clk 0:03:01.4]}
2... e6 {[%clk 0:03:00.6]} 3. c3 {[%clk 0:03:01.5]} 3... b6 {[%clk 0:03:00.4]}
4. d4 {[%clk 0:03:02]} 4... cxd4 {[%clk 0:03:01.3]} 5. cxd4 {[%clk 0:03:02.9]}
5... Bb7 {[%clk 0:03:01.5]} 6. Nc3 {[%clk 0:03:03.3]} 6... Nf6 {[%clk
0:03:01.6]} 7. Bd3 {[%clk 0:03:03.6]} 7... d6 {[%clk 0:03:00.9]} 8. O-O {[%clk
0:03:03.7]} 8... Be7 {[%clk 0:03:00.5]} 9. Qe2 {[%clk 0:03:03.3]} 9... O-O
{[%clk 0:02:58.2]} 10. e5 {[%clk 0:02:59.1]} 10... dxe5 {[%clk 0:02:58.2]} 11.
dxe5 {[%clk 0:02:59.1]} 11... Nd5 {[%clk 0:02:58.4]} 12. Qe4 {[%clk 0:02:58.3]}
12... g6 {[%clk 0:02:56.7]} 13. Nxd5 {[%clk 0:02:55.4]} 13... Qxd5 {[%clk
0:02:48.9]} 14. Qxd5 {[%clk 0:02:52.8]} 14... Bxd5 {[%clk 0:02:49.8]} 15. Nd4
{[%clk 0:02:31.9]} 15... Rd8 {[%clk 0:02:40.8]} 16. Be3 {[%clk 0:02:29.3]} 16...
Nc6 {[%clk 0:02:36.3]} 17. Nxc6 {[%clk 0:02:27.5]} 17... Bxc6 {[%clk 0:02:37.2]}
18. Rfd1 {[%clk 0:02:27.8]} 18... Bd5 {[%clk 0:02:33.8]} 19. b3 {[%clk 0:02:25]}
19... Rac8 {[%clk 0:02:31.6]} 20. Rac1 {[%clk 0:02:24.8]} 20... Ba3 {[%clk
0:02:30.7]} 21. Rxc8 {[%clk 0:02:21.8]} 21... Rxc8 {[%clk 0:02:31.6]} 22. h4
{[%clk 0:02:12.6]} 22... Bb2 {[%clk 0:02:28.3]} 23. f4 {[%clk 0:02:05.9]} 23...
h5 {[%clk 0:02:18.6]} 24. Kf2 {[%clk 0:01:48.7]} 24... Ba3 {[%clk 0:01:59.8]}
25. Rg1 {[%clk 0:01:47.7]} 25... Bc5 {[%clk 0:01:54.7]} 26. g4 {[%clk
0:01:34.7]} 26... hxg4 {[%clk 0:01:53.7]} 27. Rxg4 {[%clk 0:01:34]} 27... Bxe3+
{[%clk 0:01:53.3]} 28. Kxe3 {[%clk 0:01:34.2]} 28... Kf8 {[%clk 0:01:53.5]} 29.
Rg5 {[%clk 0:01:24.2]} 29... Rc1 {[%clk 0:01:51.7]} 30. h5 {[%clk 0:01:24]}
30... gxh5 {[%clk 0:01:51.7]} 31. Rxh5 {[%clk 0:01:24.9]} 31... Ra1 {[%clk
0:01:50.8]} 32. Rh2 {[%clk 0:01:22]} 32... a5 {[%clk 0:01:46.6]} 33. Rc2 {[%clk
0:01:09.3]} 33... Kg7 {[%clk 0:01:42.4]} 34. f5 {[%clk 0:01:03.3]} 34... Re1+
{[%clk 0:01:35.8]} 35. Kd4 {[%clk 0:01:00.6]} 35... Rd1 {[%clk 0:01:11.8]} 36.
f6+ {[%clk 0:00:59.6]} 36... Kh6 {[%clk 0:01:08.5]} 37. Rc7 {[%clk 0:00:56.8]}
37... Bf3 {[%clk 0:01:08.4]} 38. Ke3 {[%clk 0:00:41.4]} 38... Bh5 {[%clk
0:01:08]} 39. Bc4 {[%clk 0:00:33.2]} 39... b5 {[%clk 0:01:00.7]} 40. Bxb5 {[%clk
0:00:28.8]} 40... Rd5 {[%clk 0:01:01.1]} 41. Be8 {[%clk 0:00:22.7]} 41... Rxe5+
{[%clk 0:01:01.6]} 42. Kd4 {[%clk 0:00:22]} 42... Rd5+ {[%clk 0:01:01.4]} 43.
Kc3 {[%clk 0:00:21.8]} 43... Rf5 {[%clk 0:00:58.4]} 44. Bxf7 {[%clk 0:00:20.5]}
44... Rxf6 {[%clk 0:00:58.1]} 45. Bxh5 {[%clk 0:00:20.5]} 45... Kxh5 {[%clk
0:00:58.5]} 46. a4 {[%clk 0:00:12.5]} 46... Rf5 {[%clk 0:00:56.6]} 47. Kd4
{[%clk 0:00:11.4]} 47... Kg4 {[%clk 0:00:56.6]} 48. Re7 {[%clk 0:00:10]} 48...
Rf3 {[%clk 0:00:56.3]} 49. Kc4 {[%clk 0:00:07.7]} 49... Re3 {[%clk 0:00:54.3]}
50. Rb7 {[%clk 0:00:02.1]} 50... Kf4 {[%clk 0:00:47.7]} 51. Rb5 {[%clk
0:00:02.2]} 51... Re4+ {[%clk 0:00:46.9]} 52. Kc5 {[%clk 0:00:01.9]} 52... Re3
{[%clk 0:00:43.1]} 53. Kb6 {[%clk 0:00:01.5]} 53... e5 {[%clk 0:00:42.9]} 54.
Kxa5 {[%clk 0:00:02]} 54... e4 {[%clk 0:00:34.3]} 55. b4 {[%clk 0:00:02.6]}
55... Ra3 {[%clk 0:00:34.1]} 56. Rb8 {[%clk 0:00:02.8]} 56... e3 {[%clk
0:00:34.3]} 57. Re8 {[%clk 0:00:03.1]} 57... Kf3 {[%clk 0:00:34.1]} 58. b5
{[%clk 0:00:03.7]} 58... e2 {[%clk 0:00:32.7]} 59. Rxe2 {[%clk 0:00:01.8]} 59...
Kxe2 {[%clk 0:00:33.6]} 60. b6 {[%clk 0:00:02.5]} 60... Kd3 {[%clk 0:00:33.9]}
61. b7 {[%clk 0:00:02.1]} 61... Rb3 {[%clk 0:00:33.5]} 62. Ka6 {[%clk
0:00:02.1]} 62... Kc3 {[%clk 0:00:26.1]} 63. Ka7 {[%clk 0:00:01.3]} 63... Rb4
{[%clk 0:00:22.2]} 64. a5 {[%clk 0:00:01.6]} 64... Kb3 {[%clk 0:00:22.6]} 0-1